bitfinex-derivatives/quotes_BTCF0:USTF0_20241221
["timestamp","ask_amount","ask_price","bid_price","bid_amount"]
[1734757069853,0.412045,97632.0,97631.0,0.01327115]
[1734757070057,0.53473436,97632.0,97631.0,0.01328039]
[1734757070352,0.53371162,97632.0,97631.0,0.01328039]
[1734757071247,0.41102226,97632.0,97631.0,0.01328039]
[1734757074150,0.41102226,97632.0,97631.0,0.01333307]
[1734757075244,0.41102226,97632.0,97631.0,0.01333768]
[1734757076053,0.56446866,97632.0,97631.0,0.01333768]
[1734757077952,0.56446866,97632.0,97631.0,0.002]
[1734757078249,0.56446866,97632.0,97631.0,0.01332984]
[1734757078446,0.56446866,97632.0,97631.0,0.01332977]
[1734757080746,0.56446866,97632.0,97631.0,0.01332951]
[1734757080946,0.41102226,97632.0,97631.0,0.01332951]
[1734757083043,0.41102226,97632.0,97631.0,0.01333319]
[1734757086361,0.41102226,97632.0,97631.0,0.01333664]
[1734757089064,0.41102226,97632.0,97631.0,0.01328601]
[1734757092464,0.41102226,97632.0,97631.0,0.002]
[1734757092762,0.41102226,97632.0,97631.0,0.01325454]
[1734757092962,0.41102226,97632.0,97631.0,0.01325481]
[1734757097757,0.41102226,97632.0,97631.0,0.01324298]
[1734757099463,0.41102226,97632.0,97631.0,0.002]
[1734757107372,0.59530154,97632.0,97631.0,0.002]
[1734757109070,0.41102226,97632.0,97631.0,0.002]
[1734757127987,0.05125,97624.0,97623.0,0.0312]
[1734757128181,0.41205,97624.0,97623.0,0.04235232]
[1734757129281,0.41205,97624.0,97623.0,0.04635232]
[1734757129682,0.41205,97624.0,97623.0,0.04835232]
[1734757131082,0.41205,97624.0,97623.0,0.04735232]
[1734757132581,0.41205,97624.0,97623.0,0.04335232]
[1734757132780,0.41205,97624.0,97623.0,0.04435232]
[1734757135381,0.41205,97624.0,97623.0,0.0332]
[1734757135576,0.41205,97624.0,97623.0,0.04436902]
[1734757136485,0.56577814,97624.0,97623.0,0.0332]
[1734757137788,0.41205,97624.0,97623.0,0.21737904]
[1734757138087,0.41205,97624.0,97623.0,0.22857708]
[1734757138291,0.41205,97624.0,97623.0,0.22757708]
[1734757138593,0.41205,97624.0,97623.0,0.22657708]
[1734757139182,0.41205,97624.0,97623.0,0.04239804]
[1734757141891,0.41205,97624.0,97623.0,0.0312]
[1734757148689,0.051252,97620.0,97619.0,0.18414492]
[1734757148893,0.412052,97620.0,97619.0,0.18414492]
[1734757149602,0.3608,97620.0,97609.0,0.21664492]
[1734757149800,0.412056,97612.0,97609.0,0.21664492]
[1734757151204,0.412056,97612.0,97609.0,0.0325]
[1734757152003,0.412056,97612.0,97611.0,0.00204]
[1734757152489,0.412056,97612.0,97611.0,0.00104]
[1734757152695,0.412056,97612.0,97611.0,4e-05]
[1734757155694,0.42253371,97612.0,97611.0,4e-05]
[1734757156599,0.57601268,97612.0,97611.0,4e-05]
[1734757157598,0.42253371,97612.0,97611.0,4e-05]
[1734757169319,0.57601268,97612.0,97611.0,4e-05]
[1734757172700,0.21521268,97612.0,97611.0,4e-05]
[1734757172920,0.93681268,97612.0,97611.0,4e-05]
[1734757173106,0.78333371,97612.0,97611.0,4e-05]
[1734757180408,0.06173371,97612.0,97611.0,4e-05]
[1734757180608,0.78333371,97612.0,97611.0,4e-05]
[1734757181710,0.96765805,97612.0,97611.0,4e-05]
[1734757184319,0.78333371,97612.0,97611.0,4e-05]
[1734757187716,0.96787129,97612.0,97611.0,4e-05]
[1734757188926,0.78333371,97612.0,97611.0,4e-05]
[1734757191311,0.96787129,97612.0,97611.0,4e-05]
[1734757192615,0.78333371,97612.0,97611.0,4e-05]
[1734757194125,0.96787129,97612.0,97611.0,4e-05]
[1734757195429,0.78333371,97612.0,97611.0,0.18418492]
[1734757196619,0.78333371,97612.0,97611.0,4e-05]
[1734757199219,0.78333371,97612.0,97611.0,0.1842364]
[1734757200420,0.78333371,97612.0,97611.0,4e-05]
[1734757202228,0.78333371,97612.0,97609.0,0.0325]
[1734757202229,0.051259,97606.0,97605.0,0.1841964]
[1734757203428,0.051259,97606.0,97605.0,0.1851964]
[1734757203631,0.051259,97606.0,97605.0,0.003]
[1734757205926,0.772859,97606.0,97605.0,0.003]
[1734757217731,0.051261,97603.0,97602.0,0.0325]
[1734757218635,0.10110257,97603.0,97602.0,0.0325]
[1734757219039,0.10210257,97603.0,97602.0,0.0325]
[1734757219237,0.05084157,97603.0,97602.0,0.0325]
[1734757220035,0.10210257,97603.0,97602.0,0.0325]
[1734757220842,0.10110257,97603.0,97602.0,0.0325]
[1734757221143,0.10210257,97603.0,97602.0,0.0335]
[1734757221536,0.051261,97603.0,97602.0,0.0335]
[1734757222137,0.051261,97603.0,97602.0,0.0345]
[1734757223333,0.051261,97603.0,97602.0,0.0335]
[1734757223533,0.051261,97603.0,97602.0,0.0345]
[1734757224543,0.20481463,97603.0,97602.0,0.0345]
[1734757224938,0.20481463,97603.0,97602.0,0.0335]
[1734757226040,0.051261,97603.0,97602.0,0.0335]
[1734757226433,0.051261,97603.0,97602.0,0.0325]
[1734757228341,0.052261,97603.0,97602.0,0.0325]
[1734757228735,0.10110049,97603.0,97602.0,0.0325]
[1734757228939,0.10210049,97603.0,97602.0,0.0325]
[1734757230444,0.10110049,97603.0,97602.0,0.0325]
[1734757230645,0.10210049,97603.0,97602.0,0.0325]
[1734757235548,0.10110049,97603.0,97602.0,0.0325]
[1734757235742,0.10210049,97603.0,97602.0,0.0325]
[1734757237038,0.10110049,97603.0,97602.0,0.0325]
[1734757237243,0.10210049,97603.0,97602.0,0.0325]
[1734757244356,0.10110049,97603.0,97602.0,0.0325]
[1734757244658,0.10210049,97603.0,97602.0,0.0325]
[1734757244956,0.10110049,97603.0,97602.0,0.0325]
[1734757245157,0.10210049,97603.0,97602.0,0.0325]
[1734757247751,0.28637102,97603.0,97602.0,0.0325]
[1734757250552,0.10210049,97603.0,97602.0,0.0325]
[1734757251161,0.10110049,97603.0,97602.0,0.0325]
[1734757251353,0.10210049,97603.0,97602.0,0.0325]
[1734757251855,0.052261,97603.0,97602.0,0.0325]
[1734757253055,0.10210049,97603.0,97602.0,0.0325]
[1734757259158,0.28660801,97603.0,97602.0,0.0325]
[1734757259363,1.00820801,97603.0,97602.0,0.0325]
[1734757260164,0.82370049,97603.0,97602.0,0.0325]
[1734757260663,0.82270049,97603.0,97602.0,0.0325]
[1734757260863,0.82370049,97603.0,97602.0,0.0325]
[1734757261764,1.00820801,97603.0,97602.0,0.0325]
[1734757263363,0.82370049,97603.0,97602.0,0.0325]
[1734757266863,0.051262,97601.0,97600.0,0.1841964]
[1734757267064,0.051262,97601.0,97594.0,0.24521205]
[1734757267264,0.412065,97595.0,97594.0,0.24521205]
[1734757268571,0.41063949,97595.0,97587.0,0.033]
[1734757268770,0.051269,97588.0,97587.0,0.033]
[1734757270074,0.051269,97588.0,97587.0,0.035]
[1734757270271,0.051269,97588.0,97587.0,0.036]
[1734757270664,0.051269,97588.0,97587.0,0.003]
[1734757271270,0.06158565,97588.0,97587.0,0.003]
[1734757271671,0.11143344,97588.0,97587.0,0.003]
[1734757273478,0.29594096,97588.0,97587.0,0.003]
[1734757275574,0.11143344,97588.0,97587.0,0.003]
[1734757285500,0.051274,97578.0,97567.0,0.0318]
[1734757285695,0.3608,97568.0,97567.0,0.0318]
[1734757285999,0.412079,97568.0,97567.0,0.0318]
[1734757287196,0.412079,97568.0,97567.0,0.0408]
[1734757287689,0.412079,97568.0,97567.0,0.0318]
[1734757287895,0.412079,97568.0,97567.0,0.0458]
[1734757288999,0.3608,97568.0,97567.0,0.0458]
[1734757289690,0.3109,97568.0,97567.0,0.0458]
[1734757291203,0.051279,97569.0,97567.0,0.0458]
[1734757291499,0.04213073,97573.0,97571.0,0.051277]
[1734757291706,0.12273335,97578.0,97577.0,0.051274]
[1734757292102,0.12273335,97578.0,97577.0,0.351314]
[1734757292311,0.12273335,97585.0,97584.0,0.051271]
[1734757292604,0.10351669,97592.0,97591.0,0.051267]
[1734757292803,0.09745724,97599.0,97598.0,0.051263]
[1734757292992,0.09635724,97599.0,97598.0,0.412063]
[1734757293200,0.09635724,97599.0,97598.0,0.412103]
[1734757293392,0.09635724,97599.0,97598.0,4e-05]
[1734757294207,0.051263,97600.0,97598.0,4e-05]
[1734757294602,0.051263,97600.0,97594.0,0.30647154]
[1734757294603,0.051263,97600.0,97599.0,4e-05]
[1734757295703,0.054263,97600.0,97599.0,4e-05]
[1734757307627,0.053263,97600.0,97599.0,4e-05]
[1734757307827,0.054263,97600.0,97599.0,0.00104]
[1734757308023,0.051273,97580.0,97577.0,4e-05]
[1734757308324,0.412073,97580.0,97577.0,4e-05]
[1734757310112,0.412073,97580.0,97577.0,0.00104]
[1734757310311,0.412073,97580.0,97577.0,0.00304]
[1734757311117,0.051274,97579.0,97577.0,0.00304]
[1734757313029,0.051274,97579.0,97577.0,0.00204]
[1734757313223,0.051274,97579.0,97577.0,4e-05]
[1734757322539,0.052274,97579.0,97577.0,4e-05]
[1734757325343,0.053274,97579.0,97577.0,4e-05]
[1734757325636,0.055274,97579.0,97577.0,4e-05]
[1734757326143,0.058274,97579.0,97577.0,4e-05]
[1734757327938,0.21172436,97579.0,97577.0,4e-05]
[1734757329936,0.7216,97578.0,97577.0,4e-05]
[1734757331739,0.7256,97578.0,97577.0,4e-05]
[1734757332546,0.87905036,97578.0,97577.0,4e-05]
[1734757334144,0.7256,97578.0,97577.0,4e-05]
[1734757339346,0.7226,97578.0,97577.0,4e-05]
[1734757339544,0.7256,97578.0,97577.0,4e-05]
[1734757340655,0.7246,97578.0,97577.0,4e-05]
[1734757340851,0.7256,97578.0,97577.0,4e-05]
[1734757341154,0.7256,97578.0,97577.0,0.01056]
[1734757341456,0.7256,97578.0,97577.0,4e-05]
[1734757345753,0.7256,97578.0,97577.0,0.01043843]
[1734757345950,0.3648,97578.0,97577.0,0.01043843]
[1734757346548,0.004,97578.0,97577.0,0.01043843]
[1734757347956,0.3608,97587.0,97577.0,0.32359667]
[1734757348264,0.3608,97587.0,97586.0,4e-05]
[1734757349658,0.3618,97587.0,97586.0,4e-05]
[1734757350248,0.3648,97587.0,97586.0,4e-05]
[1734757350756,0.3648,97587.0,97586.0,0.00104]
[1734757354260,0.12277355,97593.0,97592.0,0.051267]
[1734757354653,0.12277355,97593.0,97592.0,0.051307]
[1734757355354,0.12577355,97593.0,97592.0,0.052307]
[1734757355751,0.003,97593.0,97592.0,0.052307]
[1734757358859,0.3638,97593.0,97592.0,0.052307]
[1734757385293,0.51725036,97593.0,97592.0,0.052307]
[1734757386293,0.51725036,97593.0,97592.0,0.00104]
[1734757386487,0.051267,97592.0,97591.0,0.19661475]
[1734757386991,0.051347,97592.0,97591.0,0.19661475]
[1734757388485,0.20479736,97592.0,97586.0,0.051269]
[1734757388686,0.20679736,97592.0,97591.0,0.001]
[1734757391183,0.15553036,97592.0,97583.0,0.30699792]
[1734757391482,0.15553036,97592.0,97583.0,0.20719792]
[1734757391483,0.412151,97584.0,97583.0,0.20719792]
[1734757391891,0.051272,97583.0,97577.0,4e-05]
[1734757392089,0.051272,97582.0,97577.0,4e-05]
[1734757392289,8e-05,97578.0,97577.0,4e-05]
[1734757394291,0.03298,97578.0,97577.0,4e-05]
[1734757394685,0.09558,97578.0,97577.0,4e-05]
[1734757395085,0.09858,97578.0,97577.0,4e-05]
[1734757401895,0.22136502,97578.0,97577.0,4e-05]
[1734757404804,0.09858,97578.0,97577.0,4e-05]
[1734757409897,0.82018,97578.0,97577.0,4e-05]
[1734757412902,0.00308,97578.0,97577.0,4e-05]
[1734757415601,0.12582086,97578.0,97577.0,4e-05]
[1734757417508,0.13614113,97578.0,97577.0,4e-05]
[1734757418900,0.01340027,97578.0,97577.0,4e-05]
[1734757419706,0.00308,97578.0,97577.0,4e-05]
[1734757420314,0.00308,97578.0,97577.0,0.18401553]
[1734757422317,0.00308,97578.0,97577.0,4e-05]
[1734757428824,0.36388,97578.0,97577.0,4e-05]
[1734757431913,0.48682481,97578.0,97577.0,4e-05]
[1734757434425,0.36388,97578.0,97577.0,4e-05]
[1734757436326,0.00308,97578.0,97577.0,4e-05]
[1734757437020,0.00308,97578.0,97577.0,0.01105344]
[1734757438815,0.00308,97578.0,97577.0,4e-05]
[1734757439120,0.00308,97578.0,97577.0,0.01108143]
[1734757441220,0.09525406,97578.0,97577.0,0.01108143]
[1734757442622,0.00308,97578.0,97577.0,0.01108143]
[1734757446432,0.00308,97578.0,97577.0,4e-05]
[1734757446729,0.00308,97578.0,97577.0,0.01105166]
[1734757446930,0.00308,97578.0,97577.0,0.01105134]
[1734757448218,0.00308,97578.0,97577.0,0.01106573]
[1734757448624,0.00308,97578.0,97577.0,0.25643754]
[1734757449426,0.00308,97578.0,97577.0,0.26746387]
[1734757449930,0.00308,97578.0,97577.0,0.01106573]
[1734757450131,0.00308,97578.0,97577.0,0.02209394]
[1734757451324,0.00308,97578.0,97577.0,0.01106573]
[1734757452433,0.01340274,97578.0,97577.0,0.02208069]
[1734757452733,0.16705716,97578.0,97577.0,0.01105496]
[1734757453237,0.16705716,97578.0,97577.0,4e-05]
[1734757453929,0.06325545,97578.0,97577.0,4e-05]
[1734757454921,0.05293271,97578.0,97577.0,4e-05]
[1734757455426,0.00308,97578.0,97577.0,0.01105448]
[1734757455726,0.00308,97578.0,97577.0,0.01105425]
[1734757456928,0.15673083,97578.0,97577.0,0.01105425]
[1734757457238,0.15673083,97578.0,97577.0,4e-05]
[1734757458327,0.15673083,97578.0,97577.0,0.011055]
[1734757458826,0.15673083,97578.0,97577.0,0.0110549]
[1734757459341,0.15673083,97578.0,97577.0,0.01105453]
[1734757461335,0.15673083,97578.0,97577.0,4e-05]
[1734757464832,0.00308,97578.0,97577.0,4e-05]
[1734757466341,0.15673083,97578.0,97577.0,4e-05]
[1734757468433,0.15673083,97578.0,97577.0,0.01104523]
[1734757469142,0.51753083,97578.0,97577.0,0.01104523]
[1734757470343,0.15673083,97578.0,97577.0,0.01104523]
[1734757470534,0.51753083,97578.0,97577.0,0.01104676]
[1734757471246,0.36388,97578.0,97577.0,0.01104676]
[1734757472649,0.51753083,97578.0,97577.0,4e-05]
[1734757473946,0.41373426,97578.0,97577.0,4e-05]
[1734757477341,0.77453426,97578.0,97577.0,4e-05]
[1734757477637,0.05293426,97578.0,97577.0,4e-05]
[1734757477844,0.77453426,97578.0,97577.0,4e-05]
[1734757500253,0.77453426,97578.0,97556.0,0.1840714]
[1734757500457,0.412085,97557.0,97556.0,0.1840714]
[1734757500757,0.412085,97557.0,97555.0,0.26424395]
[1734757501161,0.41224499,97557.0,97555.0,0.26424395]
[1734757501347,0.41224499,97557.0,97556.0,0.003]
[1734757501545,0.412085,97557.0,97556.0,0.003]
[1734757501751,0.412085,97557.0,97556.0,0.02103724]
[1734757502154,0.412085,97557.0,97556.0,0.01103719]
[1734757502663,0.412085,97557.0,97556.0,0.01103755]
[1734757502852,0.412085,97557.0,97556.0,0.01803755]
[1734757503363,0.412085,97557.0,97556.0,0.02103755]
[1734757503953,0.412085,97557.0,97556.0,0.02105264]
[1734757506769,0.3608,97557.0,97556.0,0.07233764]
[1734757507059,0.15368116,97560.0,97559.0,0.051284]
[1734757507264,0.15368116,97560.0,97559.0,0.06233664]
[1734757507667,0.12294773,97561.0,97560.0,0.051283]
[1734757507862,0.12294773,97561.0,97560.0,0.12564406]
[1734757508066,0.07304773,97561.0,97560.0,0.12564406]
[1734757508860,0.07304773,97561.0,97560.0,0.12764406]
[1734757509062,0.09219024,97567.0,97566.0,0.05128]
[1734757509260,0.09219024,97567.0,97566.0,0.06234106]
[1734757510669,0.051277,97572.0,97566.0,0.06234106]
[1734757510670,0.09219024,97570.0,97566.0,0.01207979]
[1734757510863,0.09219024,97570.0,97569.0,0.051279]
[1734757511068,0.09219024,97570.0,97569.0,0.06237534]
[1734757512057,0.09009024,97570.0,97569.0,0.06237534]
[1734757512259,0.15368116,97581.0,97580.0,0.051273]
[1734757512463,0.15368116,97586.0,97580.0,0.42317959]
[1734757512770,0.15368116,97586.0,97581.0,0.0615]
[1734757512966,0.15368116,97586.0,97582.0,0.01113334]
[1734757513470,0.15368116,97586.0,97581.0,0.0615]
[1734757513878,0.15368116,97586.0,97582.0,0.01112942]
[1734757514180,0.06178933,97590.0,97583.0,0.01112942]
[1734757514472,0.002,97586.0,97584.0,0.01112942]
[1734757514675,0.002,97586.0,97585.0,0.01112942]
[1734757514976,0.05127,97585.0,97581.0,0.01049152]
[1734757515162,0.002,97586.0,97580.0,0.3608]
[1734757515362,0.05143199,97582.0,97580.0,0.3608]
[1734757515562,0.032,97581.0,97580.0,0.3608]
[1734757515774,0.032,97581.0,97580.0,0.37192031]
[1734757517264,0.032,97581.0,97580.0,0.37191755]
[1734757517671,0.034,97581.0,97580.0,0.37191755]
[1734757520672,0.034,97581.0,97580.0,0.3608]
[1734757520977,0.034,97581.0,97580.0,0.37190663]
[1734757521569,0.002,97581.0,97580.0,0.37190663]
[1734757523175,0.002,97581.0,97580.0,0.38206908]
[1734757526076,0.002,97581.0,97580.0,0.37096245]
[1734757526284,0.002,97581.0,97580.0,0.38210575]
[1734757529485,0.002,97581.0,97580.0,0.38210035]
[1734757531980,0.002,97581.0,97580.0,0.38214594]
[1734757534077,0.002,97581.0,97580.0,0.56590659]
[1734757535279,0.0341,97581.0,97580.0,0.55574414]
[1734757535587,0.0668,97581.0,97580.0,0.37198349]
[1734757537785,0.0668,97581.0,97580.0,0.32208349]
[1734757541490,0.0668,97581.0,97580.0,0.56720284]
[1734757546501,0.0668,97581.0,97580.0,0.32208349]
[1734757549088,0.0668,97581.0,97579.0,0.051273]
[1734757549385,0.00015999,97580.0,97579.0,0.051273]
[1734757549795,0.00015999,97580.0,97579.0,0.06243157]
[1734757552098,0.00215999,97580.0,97579.0,0.06243157]
[1734757555384,0.05343299,97580.0,97579.0,0.01115857]
[1734757556592,0.05343299,97580.0,97579.0,0.19520663]
[1734757557796,0.05343299,97580.0,97579.0,0.01120185]
[1734757558003,0.05343299,97580.0,97579.0,0.37200185]
[1734757559998,0.05343299,97580.0,97579.0,0.3608]
[1734757560198,0.05343299,97580.0,97579.0,0.37200272]
[1734757563606,0.05343299,97580.0,97579.0,0.37200068]
[1734757566512,0.05343299,97580.0,97579.0,0.3719715]
[1734757566698,0.08553299,97580.0,97579.0,0.3719715]
[1734757572407,0.08553299,97580.0,97579.0,0.3608]
[1734757572611,0.08553299,97580.0,97579.0,0.37194222]
[1734757572796,0.08553299,97580.0,97579.0,0.3608]
[1734757573001,0.08553299,97580.0,97579.0,0.37194223]
[1734757574012,0.08553299,97580.0,97579.0,0.01114624]
[1734757574711,0.09601306,97580.0,97579.0,0.01114624]
[1734757574911,0.08553299,97580.0,97579.0,0.01114624]
[1734757575112,0.08553299,97580.0,97578.0,0.051274]
[1734757575307,0.08553299,97580.0,97579.0,0.0111539]
[1734757575506,0.085373,97580.0,97579.0,0.0111539]
[1734757577215,0.23905416,97580.0,97578.0,0.29639335]
[1734757577408,0.23905416,97580.0,97578.0,0.051274]
[1734757578722,0.085373,97580.0,97578.0,0.051274]
[1734757579014,0.085373,97580.0,97579.0,0.01115578]
[1734757580805,0.083373,97580.0,97579.0,0.01115578]
[1734757581006,0.085373,97580.0,97579.0,0.01115578]
[1734757583615,0.23915206,97580.0,97579.0,0.01115578]
[1734757584807,0.085373,97580.0,97579.0,0.01115578]
[1734757585008,0.085373,97580.0,97579.0,0.01119887]
[1734757585717,0.085373,97580.0,97579.0,0.01120422]
[1734757586311,0.23915206,97580.0,97579.0,0.01120422]
[1734757590122,0.085373,97580.0,97579.0,0.01120422]
[1734757591220,0.085373,97580.0,97579.0,0.01121565]
[1734757594128,0.085373,97580.0,97579.0,0.01122116]
[1734757594524,0.085373,97580.0,97578.0,0.051274]
[1734757594732,0.085373,97580.0,97579.0,0.01121883]
[1734757597130,0.085373,97580.0,97579.0,0.01122368]
[1734757600122,0.085373,97580.0,97579.0,0.01122976]
[1734757602228,0.23915206,97580.0,97579.0,0.01122976]
[1734757603023,0.23915206,97580.0,97579.0,0.01122238]
[1734757604024,0.23915206,97580.0,97579.0,0.01122237]
[1734757607125,0.15577906,97580.0,97579.0,0.01122237]
[1734757607635,0.002,97580.0,97579.0,0.01122237]
[1734757608930,0.002,97580.0,97579.0,0.25634883]
[1734757609425,1e-08,97582.0,97580.0,0.051273]
[1734757609618,1e-08,97582.0,97581.0,0.01122948]
[1734757609824,0.18441739,97589.0,97582.0,0.051272]
[1734757610024,0.18441739,97589.0,97588.0,0.412069]
[1734757610225,0.18441739,97589.0,97588.0,0.42333848]
[1734757610422,0.051263,97599.0,97588.0,0.42333848]
[1734757610423,0.18441739,97596.0,97588.0,0.37206948]
[1734757610627,0.18441739,97596.0,97595.0,0.051265]
[1734757610823,0.18441739,97596.0,97595.0,0.06249448]
[1734757611225,0.18441739,97596.0,97595.0,0.06253448]
[1734757611730,0.18641739,97596.0,97595.0,0.06353448]
[1734757612227,0.002,97596.0,97595.0,0.06353448]
[1734757613534,0.12491805,97596.0,97595.0,0.06353448]
[1734757615037,0.002,97596.0,97595.0,0.06353448]
[1734757615541,0.002,97596.0,97595.0,0.07390385]
[1734757617731,0.002,97596.0,97595.0,0.07395573]
[1734757618642,0.002,97596.0,97595.0,0.07395316]
[1734757620739,0.002,97596.0,97595.0,0.07395182]
[1734757621037,0.002,97596.0,97595.0,0.08522927]
[1734757622738,0.12291805,97606.0,97605.0,0.05126]
[1734757622936,0.12291805,97608.0,97607.0,0.051259]
[1734757623236,0.12291805,97608.0,97607.0,0.42337645]
[1734757624337,0.12291805,97608.0,97607.0,0.42437645]
[1734757624538,0.12291805,97621.0,97616.0,0.051254]
[1734757624738,0.12291805,97621.0,97616.0,0.42333145]
[1734757624938,0.12291805,97621.0,97616.0,0.42337145]
[1734757625348,0.12291805,97621.0,97620.0,0.051252]
[1734757625640,0.12291805,97621.0,97620.0,0.06253553]
[1734757625944,0.12291805,97630.0,97620.0,0.01128353]
[1734757626138,0.12291805,97630.0,97629.0,0.412047]
[1734757626339,0.12291805,97630.0,97629.0,0.412087]
[1734757627547,0.0513,97630.0,97629.0,0.412087]
[1734757627934,0.0513,97630.0,97629.0,0.421087]
[1734757628346,0.0513,97630.0,97629.0,0.430087]
[1734757633451,0.12291805,97641.0,97629.0,0.430087]
[1734757633452,0.0513,97640.0,97629.0,0.430087]
[1734757633650,0.0513,97640.0,97639.0,0.412042]
[1734757633952,0.17421805,97640.0,97639.0,0.412082]
[1734757635446,0.0513,97645.0,97639.0,0.36084]
[1734757635950,0.0513,97645.0,97644.0,4e-05]
[1734757637146,0.0513,97645.0,97639.0,0.36748]
[1734757637346,0.04164642,97646.0,97639.0,0.3668]
[1734757637547,0.04164642,97646.0,97640.0,0.01134384]
[1734757637747,0.16456447,97646.0,97645.0,4e-05]
[1734757639343,0.04164642,97646.0,97645.0,4e-05]
[1734757640051,0.04264642,97646.0,97645.0,0.01504]
[1734757641446,0.0323,97646.0,97645.0,0.02635122]
[1734757642654,0.0323,97646.0,97645.0,0.02135122]
[1734757643044,0.0313,97646.0,97645.0,0.01236347]
[1734757643249,0.0323,97646.0,97645.0,0.01336347]
[1734757645755,0.12406912,97646.0,97645.0,0.01336347]
[1734757647158,0.0323,97646.0,97645.0,0.01336347]
[1734757648457,0.001,97646.0,97645.0,0.01336347]
[1734757649156,0.001,97646.0,97645.0,0.01338393]
[1734757651548,0.001,97646.0,97645.0,0.00204]
[1734757651756,0.001,97646.0,97645.0,0.0133937]
[1734757654347,0.001,97646.0,97645.0,0.0646327]
[1734757656659,0.001,97646.0,97645.0,0.08294613]
[1734757657454,0.001,97646.0,97645.0,0.07159429]
[1734757657656,0.001,97646.0,97645.0,0.08304134]
[1734757657850,0.001,97646.0,97645.0,0.053279]
[1734757658056,0.001,97646.0,97645.0,0.08305415]
[1734757659063,0.0341,97646.0,97645.0,0.08305415]
[1734757659645,0.18699083,97646.0,97645.0,0.06473098]
[1734757660357,0.18699083,97646.0,97645.0,0.06471402]
[1734757662653,0.08391087,97646.0,97645.0,0.06371402]
[1734757663255,0.08391087,97646.0,97645.0,0.052279]
[1734757663460,0.08391087,97646.0,97645.0,0.06372781]
[1734757663663,0.08391087,97646.0,97645.0,0.08206392]
[1734757663860,0.0341,97646.0,97645.0,0.08206392]
[1734757665268,0.08391087,97646.0,97645.0,0.08206392]
[1734757667463,0.08391087,97646.0,97645.0,0.44286392]
[1734757668656,0.05081087,97646.0,97645.0,0.44286392]
[1734757669963,0.001,97646.0,97645.0,0.44286392]
[1734757671255,0.001,97646.0,97645.0,0.6262315]
[1734757672257,0.001,97646.0,97645.0,0.44286392]
[1734757674852,0.001,97646.0,97645.0,0.44307466]
[1734757675061,0.15456413,97646.0,97645.0,0.44307466]
[1734757675259,0.15456413,97646.0,97645.0,0.413079]
[1734757675562,0.15456413,97646.0,97645.0,0.44307338]
[1734757676372,0.001,97646.0,97645.0,0.62644096]
[1734757677673,0.001,97646.0,97645.0,0.44307338]
[1734757679264,0.001,97646.0,97645.0,0.44304124]
[1734757679865,0.001,97646.0,97645.0,0.62640882]
[1734757680569,0.001,97646.0,97645.0,0.59644658]
[1734757680770,0.001,97646.0,97645.0,0.62642861]
[1734757681168,0.001,97646.0,97645.0,0.62642978]
[1734757682373,0.001,97646.0,97645.0,0.4430622]
[1734757682761,0.001,97646.0,97645.0,0.44305449]
[1734757683169,0.001,97646.0,97645.0,0.413079]
[1734757683369,0.001,97646.0,97645.0,0.44305418]
[1734757685058,0.001,97646.0,97645.0,0.44303059]
[1734757690179,0.05080972,97646.0,97645.0,0.44303059]
[1734757691783,0.05080972,97646.0,97645.0,0.44308064]
[1734757694470,0.05080972,97646.0,97645.0,0.42460531]
[1734757694679,0.05080972,97646.0,97645.0,0.44304742]
[1734757697381,0.05080972,97646.0,97645.0,0.413079]
[1734757697583,0.05080972,97646.0,97645.0,0.44294816]
[1734757698388,0.05080972,97646.0,97645.0,0.44293221]
[1734757700877,0.05080972,97646.0,97645.0,0.42453476]
[1734757701886,0.05080972,97646.0,97645.0,0.44288993]
[1734757705584,0.05080972,97646.0,97645.0,0.413079]
[1734757705786,0.05080972,97646.0,97645.0,0.44301158]
[1734757705982,0.00052001,97667.0,97648.0,0.051237]
[1734757706189,0.0608,97674.0,97661.0,0.41203]
[1734757706486,0.21475039,97665.0,97664.0,0.051229]
[1734757706680,0.21475039,97665.0,97664.0,0.08116158]
[1734757706883,0.21475039,97665.0,97664.0,0.08120158]
[1734757708188,0.15348809,97667.0,97665.0,0.051228]
[1734757708483,0.15348809,97667.0,97666.0,0.02993702]
[1734757709284,0.15348809,97667.0,97666.0,0.01153885]
[1734757709487,0.15348809,97668.0,97667.0,0.051227]
[1734757709682,0.15348809,97668.0,97667.0,0.08122599]
[1734757709884,0.15348809,97668.0,97667.0,0.08126599]
[1734757710882,0.15348809,97669.0,97667.0,0.08126599]
[1734757711190,0.15348809,97669.0,97668.0,0.03003899]
[1734757711883,0.15348809,97670.0,97669.0,0.051226]
[1734757712083,0.15348809,97670.0,97669.0,0.08122499]
[1734757712386,0.15348809,97670.0,97669.0,0.08126499]
[1734757713278,0.15348809,97670.0,97669.0,0.44206499]
[1734757714290,0.15348809,97672.0,97669.0,0.39183899]
[1734757714588,0.15348809,97672.0,97671.0,4e-05]
[1734757714885,0.15348809,97672.0,97671.0,0.03003899]
[1734757715784,0.15348809,97673.0,97671.0,0.08126399]
[1734757715987,0.15348809,97673.0,97672.0,0.02999899]
[1734757716178,0.15348809,97673.0,97672.0,0.03003899]
[1734757716981,0.21428809,97674.0,97672.0,0.03015538]
[1734757717183,0.21428809,97674.0,97673.0,0.03011538]
[1734757717381,0.21428809,97674.0,97673.0,0.0301423]
[1734757718083,0.0608,97674.0,97673.0,0.03013327]
[1734757718981,0.03,97674.0,97673.0,0.03013327]
[1734757720087,0.03,97674.0,97673.0,0.03113327]
[1734757720989,0.03,97674.0,97673.0,0.03114218]
[1734757722892,0.03,97674.0,97673.0,0.03112405]
[1734757723080,0.03,97674.0,97673.0,0.01261079]
[1734757723286,0.03,97674.0,97673.0,0.03114642]
[1734757726788,0.15348809,97677.0,97673.0,0.03114642]
[1734757726982,0.15348809,97677.0,97676.0,0.051222]
[1734757727183,0.15348809,97677.0,97676.0,0.08136842]
[1734757728087,0.0304,97685.0,97676.0,0.08136842]
[1734757728398,0.12254317,97680.0,97679.0,0.051221]
[1734757728695,0.12254317,97680.0,97679.0,0.44212742]
[1734757729795,0.15348809,97687.0,97685.0,0.051218]
[1734757730097,0.15348809,97687.0,97686.0,0.01157079]
[1734757730598,0.16363375,97687.0,97686.0,0.01157079]
[1734757731394,0.01014566,97687.0,97686.0,0.01157079]